Cogmind - Beta 14 @@@ ROGUE MODE // 2024.08.13 @ 18:58:10 Player: Wotf Result: Destroyed by D-53 Grenadier with Mini Grenade Launcher Performance ------------- Evolutions (0) 0 Regions Visited (2) 400 Robots Destroyed (25) 125 Value Destroyed (502) 502 Prototype IDs (0) 0 Alien Tech Used (0) 0 Bonus (0) 0 TOTAL SCORE: 1027 Bonus ------- None Cogmind --------- Core Integrity 0/250 Matter 361/400 Energy 250/250 System Corruption 0% Temperature Cool (0) Movement Treading (160) Location -10/Mines Parts ------- > --- POWER (1) -------- Ion Engine > --- PROPULSION (2) --- Light Treads Light Treads > --- UTILITY (2) ------ Large Storage Unit Medium Matter Pod > --- WEAPON (2) ------- (None) > --- INVENTORY (15) --- Ion Engine Light Treads Aluminum Leg Aluminum Leg Medium Matter Pod (100) Structural Scanner Light Armor Plating Peak State ------------ > --- POWER ------------ Ion Engine > --- PROPULSION ------- Light Treads Light Treads > --- UTILITY ---------- Large Storage Unit Light Armor Plating > --- WEAPON ----------- Small Laser Light Assault Rifle > --- INVENTORY -------- Ion Engine Light Treads Aluminum Leg Aluminum Leg Medium Storage Unit Medium Matter Pod Medium Matter Pod Structural Scanner Light Armor Plating EM Pulse Gun [Rating: 8] Favorites ----------- Power Ion Engine Engine Ion Engine Propulsion Light Treads Treads Light Treads Utility Small Storage Unit Device Structural Scanner Storage Small Storage Unit Processor Signal Interpreter Protection Light Armor Plating Weapon Light Assault Rifle Energy Gun Small Laser Ballistic Gun Light Assault Rifle Build | -11 -10 -10 ------- Run | Yrd Mat Min Slots Evolved . | . . . Power . | . . . Propulsion . | . . . Utility . | . . . Weapon . | . . . Parts Attached 26 | 6 17 3 Power 6 | 1 5 . Engine 6 | 1 5 . Core . | . . . Reactor . | . . . Propulsion 5 | 2 3 . Treads 5 | 2 3 . Leg . | . . . Wheel . | . . . Hover . | . . . Flight . | . . . Utility 9 | 1 6 2 Device 1 | . 1 . Storage 4 | 1 2 1 Processor 1 | . 1 . Hackware . | . . . Protection 3 | . 2 1 Artifact . | . . . Weapon 6 | 2 3 1 Energy Gun 3 | 1 1 1 Energy Cannon . | . . . Ballistic Gun 3 | 1 2 . Ballistic Cannon . | . . . Launcher . | . . . Special Weapon . | . . . Impact Weapon . | . . . Slashing Weapon . | . . . Piercing Weapon . | . . . Special Melee Weapon . | . . . Unidentified Prototypes . | . . . Parts Lost 5 | . 1 4 Power . | . . . Propulsion . | . . . Utility 1 | . . 1 Weapon 4 | . 1 3 Highest Loss Streak 4 | . 1 4 To Critical Strikes . | . . . Average Slot Usage (%) 98 | . 98 90 Engine 14 | . 14 14 Treads 28 | . 28 28 Device 4 | . 4 . Storage 14 | . 14 14 Protection 8 | . 8 11 Energy Gun 6 | . 6 9 Ballistic Gun 20 | . 20 11 Peak Build Rating 8 | 6 8 7 Average Rating 6 | 4 7 6 On Entrance 4 | . 6 8 Naked Turns . | . . . Heaviest Build 30 | 11 30 30 Greatest Support 40 | 40 40 40 Greatest Overweight (x) . | . . . Average Overweight (x) . | . . . Largest Inventory Capacity 15 | 8 15 15 Average Capacity 10 | 6 10 15 Most Carried 10 | 7 10 9 Average Carried 8 | 4 8 8 Final Capacity 15 | 8 15 15 Final Carried 10 | 6 10 7 Class Distribution -------------------- 96% | Mutant 3% | Scavenger-Mutant Dominant Class ---------------- Mutant | -10/Materials Mutant | -10/Mines Resources | -11 -10 -10 ----------- Run | Yrd Mat Min Matter Collected 842 | 272 570 . Remotely . | . . . Salvage Created 938 | 77 861 . Parts 48 | 3 45 . Haulers Intercepted 2 | . 2 . Recyclers Shooed 2 | . 2 . Parts Field Recycled . | . . . Retrieved Matter . | . . . Parts Self-Destructed . | . . . Prevented . | . . . Kills | -11 -10 -10 ------- Run | Yrd Mat Min Combat Hostiles Destroyed 17 | . 17 . Guns 17 | . 17 . Classes Destroyed 6 | 1 5 . Worker 1 | . 1 . Hauler 2 | . 2 . Recycler 3 | 1 2 . Watcher 2 | . 2 . Swarmer 6 | . 6 . Grunt 11 | . 11 . Best Kill Streak 10 | 1 10 . Combat Bots Only 5 | . 5 . Max Kills in Single Turn 2 | 1 2 . Gunslinging . | . . . Exploded . | . . . Melee . | . . . Uniques/NPCs Destroyed . | . . . Combat | -11 -10 -10 -------- Run | Yrd Mat Min Hostile Shots Fired 102 | . 87 15 Missed 27 | . 26 1 Damage Taken 1198 | . 642 556 Core 270 | . 159 111 Absorbed by Shields . | . . . Regen/Repaired (Parts) 82 | . 82 . Core Remaining (%) 100 | 100 . . Volleys Fired 117 | 4 106 7 Largest 2 | 2 2 2 Hottest 60 | 60 60 60 Shots Fired 212 | 6 198 8 Gun 212 | 6 198 8 Cannon . | . . . Launcher . | . . . Special . | . . . Kinetic 191 | 4 181 6 Thermal 20 | 2 17 1 Explosive . | . . . Electromagnetic 1 | . . 1 Robot Hit Streak 27 | 3 27 3 Robot Miss Streak 6 | 1 6 1 Penetration Max . | . . . Secondary Targets 2 | . 2 . Max Gunslinging Chain 1 | . 1 . Shots Hit Robots 123 | 4 114 5 Core Hits 55 | 2 51 2 Critical Kills 1 | . 1 . Critical Parts Destroyed 2 | . 2 . Critical Strikes 4 | . 3 1 Destroy 4 | . 3 1 Melee Attacks . | . . . Impact . | . . . Slashing . | . . . Piercing . | . . . Sneak Attacks . | . . . Combat Hostiles . | . . . Follow-up Attacks . | . . . Damage Inflicted 1174 | 52 1083 39 Guns 1171 | 52 1080 39 Cannons . | . . . Explosions . | . . . Melee . | . . . Ramming 3 | . 3 . Kinetic 1093 | 40 1025 28 Thermal 67 | 12 55 . Explosive . | . . . Electromagnetic 11 | . . 11 Impact . | . . . Slashing . | . . . Piercing . | . . . Highest Corruption . | . . . Average Corruption . | . . . Corruption Purged . | . . . Corruption Blocked . | . . . Overload Shots . | . . . Overflow Damage . | . . . Projectiles . | . . . Explosions . | . . . Melee . | . . . Knockbacks . | . . . Impact . | . . . Kinetic . | . . . Secondary . | . . . Self-Inflicted Damage . | . . . Shots . | . . . Rammed 1 | . 1 . Targets Rammed 1 | . 1 . Kicked . | . . . Crushed . | . . . Highest Temperature 70 | . 70 26 Average Temperature 18 | . 19 8 Received Heat Transfer 273 | . 273 . Siege Activations . | . . . Robots Corrupted . | . . . Combat Hostiles . | . . . Parts Fried . | . . . Impact Corruptions . | . . . Robots Melted . | . . . Combat Hostiles . | . . . Parts Melted . | . . . Heat Transferred 150 | 25 125 . Parts Sabotaged . | . . . Parts Stolen . | . . . Parts Stripped . | . . . Power Chain Reactions . | . . . Alert | -11 -10 -10 ------- Run | Yrd Mat Min Peak Influence 329 | 5 329 69 Initial 69 | . 3 69 Average 167 | 1 181 60 Maximum Alert Level 1 | . 1 . Low Security (%) 51 | 100 47 100 Level 1 48 | . 52 . Level 2 . | . . . Level 3 . | . . . Level 4 . | . . . Level 5 . | . . . High Security . | . . . Max Security . | . . . Squads Dispatched 3 | . 3 . Investigation 3 | . 3 . Extermination . | . . . Reinforcement . | . . . Assault . | . . . Garrison . | . . . Intercept . | . . . Searches Triggered . | . . . Construction Impeded . | . . . Haulers Reinforced . | . . . Active Scanning Responses . | . . . Cargo Convoy Interrupts . | . . . Stealth | -11 -10 -10 --------- Run | Yrd Mat Min Distress Signals 1 | . 1 . Communications Jammed . | . . . Distress Signals . | . . . Times Spotted 33 | . 31 2 Peak Tracking Total 6 | . 6 2 Tactical Retreats 2 | . 2 . Traps | -11 -10 -10 ------- Run | Yrd Mat Min Traps Triggered 2 | . 2 . Indirectly . | . . . Trap Hack Attempts . | . . . Triggered . | . . . Disarmed . | . . . Reprogrammed . | . . . Reused . | . . . Traps Extracted . | . . . Installed . | . . . Triggered . | . . . Machines | -11 -10 -10 ---------- Run | Yrd Mat Min Machines Disabled . | . . . Max in Single Turn . | . . . Machines Repaired . | . . . Machines Dismantled . | . . . Machines Sabotaged . | . . . Overloaded Fab Kills . | . . . Hacking | -11 -10 -10 --------- Run | Yrd Mat Min Machines Accessed 8 | . 8 . Terminals 6 | . 6 . Fabricators . | . . . Repair Stations 1 | . 1 . Recycling Units 1 | . 1 . Scanalyzers . | . . . Garrison Access . | . . . Total Hacks 21 | . 21 . Successful 6 | . 6 . Failed 14 | . 14 . Catastrophic 1 | . 1 . Database Lockouts 1 | . 1 . Manual 31 | . 31 . Terminals 15 | . 15 . Fabricators . | . . . Repair Stations 3 | . 3 . Recycling Units 3 | . 3 . Scanalyzers . | . . . Garrison Access . | . . . Terminal Hacks 4 | . 4 . Record 1 | . 1 . Robot Analysis 1 | . 1 . Transport Status 1 | . 1 . Hauler Manifests 1 | . 1 . Fabricator Hacks . | . . . Repair Station Hacks 2 | . 2 . Scan Component 1 | . 1 . Repair 1 | . 1 . Recycling Unit Hacks . | . . . Scanalyzer . | . . . Garrison Access Hacks . | . . . Unauthorized Hacks . | . . . Terminals . | . . . Fabricators . | . . . Repair Stations . | . . . Recycling Units . | . . . Scanalyzers . | . . . Garrison Access . | . . . Data Cores Recovered . | . . . Used . | . . . Hacking Detections 9 | . 9 . Full Trace Events 1 | . 1 . Feedback Events . | . . . Feedback Blocked . | . . . Robot Schematics Acquired . | . . . Robots Built . | . . . Authchips . | . . . Time . | . . . Total Robot Build Rating . | . . . Part Schematics Acquired . | . . . Parts Built . | . . . Authchips . | . . . Time . | . . . Total Part Build Rating . | . . . Parts Repaired 1 | . 1 . Time 26 | . 26 . Parts Recycled . | . . . Recycled Matter . | . . . Retrieved Matter . | . . . Retrieved Components . | . . . Parts Scanalyzed . | . . . Part Schematics Acquired . | . . . Parts Damaged . | . . . Bothacking | -11 -10 -10 ------------ Run | Yrd Mat Min Used RIF Installer . | . . . Robots Hacked . | . . . Non-combat . | . . . Combat . | . . . Robot Hacks Applied . | . . . Relay Couplers Released . | . . . Fabnet Peak Effective % . | . . . Robots Rewired . | . . . Allies Hacked . | . . . Hacks Repelled . | . . . Allies | -11 -10 -10 -------- Run | Yrd Mat Min Total Allies . | . . . Largest Group . | . . . Highest-Rated Group . | . . . Highest-Rated Ally . | . . . Total Orders . | . . . Ally Attacks . | . . . Total Damage . | . . . Kills . | . . . Allies Corrupted . | . . . Allies Melted . | . . . Intel | -11 -10 -10 ------- Run | Yrd Mat Min Robot Analysis Total 1 | . 1 . Derelict Logs Recovered . | . . . Drone Launches . | . . . Drone Recoveries . | . . . Exploration | -11 -10 -10 ------------- Run | Yrd Mat Min Turns Passed 2096 | 114 1918 64 Spaces Moved 1039 | 54 966 19 Core 7 | 7 . . Treads 1032 | 47 966 19 Legs . | . . . Wheels . | . . . Hover . | . . . Flight . | . . . Fastest Speed 50 | 50 160 160 Average Speed 159 | 145 160 160 Slowest Speed 160 | 160 160 160 Overloaded Moves . | . . . Propulsion Burnouts . | . . . Robots Hopped . | . . . Cave-ins Triggered . | . . . Exploration Rate (%) 37 | 6 98 9 Regions Visited 2 Branch Regions 1 Pre-discovered Areas . | . . . Known Exits Taken 1 | . 1 . Unknown Exits Taken 1 | 1 . . Scrap Searched . | . . . Spaces Dug . | . . . Terrain Destroyed . | . . . Melee . | . . . Projectile . | . . . AOE . | . . . Terrain Rammed . | . . . Walls Destroyed . | . . . Machines Disabled . | . . . Actions | -11 -10 -10 --------- Run | Yrd Mat Min Total 1300 | 81 1174 45 Wait 93 | 11 66 16 Move 1037 | 53 965 19 Hop . | . . . Pick Up 12 | 7 5 . Fast Attach 10 | 5 5 . Attach 3 | 1 . 2 Detach . | . . . Swap 13 | . 12 1 Drop 14 | . 14 . Fire 117 | 4 106 7 Melee . | . . . Ram . | . . . Kick . | . . . Crush 1 | . 1 . Escape Stasis . | . . . Rewire . | . . . Trap . | . . . Miscellaneous . | . . . Route ------- -11/Scrapyard -10/Materials (discovered 4 exits: [*Mat x3] / *Min) -10/Mines (discovered 1 exit: [*Mat]) History --------- Turn | Location | Event 15 | -11/Scrapyard | Discovered new exit (range 15) 115 | -11/Scrapyard | Entered Materials 301 | -10/Materials | Build established: Mutant 523 | -10/Materials | Central database locked down 617 | -10/Materials | Discovered new exit (range 13) 1044 | -10/Materials | Core integrity fell below 50% 1104 | -10/Materials | Discovered new exit (range 6) 1444 | -10/Materials | Discovered new exit (range 13) 1797 | -10/Materials | Repaired Lgt. Armor Plating 1822 | -10/Materials | Discovered new exit (range 16) 2032 | -10/Materials | Identified exit to Mines 2033 | -10/Materials | Entered Mines 2034 | -10/Mines | Assembled infested the area 2091 | -10/Mines | Core integrity fell below 20% 2092 | -10/Mines | Discovered new exit (range 13) 2097 | -10/Mines | Destroyed by D-53 Grenadier with Mini Grenade Launcher Last Messages --------------- GOAL=ESCAPE Discarded Signal Interpreter. ALERT: Infestation in the mines, dispatching Demolisher response squad. K-01 Serf collects debris. K-01 Serf cleans the Seismic Survey Station. K-01 Serf collects debris. K-01 Serf cleans the Seismic Survey Station. K-01 Serf destroyed. Sml. Laser destroyed. D-53 Grenadier suffers critical hit (Destroy). The unstable cave ceiling collapses. K-01 Serf destroyed. Lgt. Assault Rifle destroyed. EM Pulse Gun destroyed. Lgt. Armor Plating destroyed. EXIT=FOUND D-53 Grenadier destroyed. U-05 Engineer lays Concrete. K-01 Serf collects debris. The unstable cave ceiling collapses. Map ----- +----------------------------------------------------+ | | | | | | | | | | | | | ???????????????????????????????? | | ???????????????????????????????? | | ???????????????????????????????? | | ???????????????????????????????? | | ???????????????????????????????? | | ???????????????????????????????? | | ???????????????????????????????? | | ???????????????????????????????? | | ????????????????????########???? | | ????????????????????# ???? | | ???????????????????## ###?? | | ???????????????????# ##? | | ???????????????????# #? | | ?????????########### #? | | ?????????# ## #?? | | ?????????# ## # #?? | | ?????????# #?? | | ?????????# """ ## #?? | | ?????????# """ ## #?? | | ?????????# """ ### @ # #? | | ?????????##########?# d # | | ???????????????????# # # # | | ??????????????????#k # | | ????????????????? ### ### | | ??????????????? k ??# # ?? | | ????????????? ??? #? | | ???????????? < ???? ##? | | ???????????? ????## ## ##?? | | ????????????? ?????####?? #??? | | ??????????????????????????? #??? | | ??????????????????????????? #??? | | ??????????????????????????? #??? | | ??????????????????????????? #??? | | ????????????????????????????#??? | | ???????????????????????????????? | | ???????????????????????????????? | | ???????????????????????????????? | | ???????????????????????????????? | | ???????????????????????????????? | | ???????????????????????????????? | | ???????????????????????????????? | | ???????????????????????????????? | | ???????????????????????????????? | | ???????????????????????????????? | +----------------------------------------------------+ Best States ------------- Heat Dissipation 25 Energy Generation 10 Energy Capacity 250 Matter Stores 300 Matter Capacity 300 Sight Range 16 Terrain Scan Density 10 Armor Coverage 150 Evasion (%) 40 Recoil Reduction 2 Item Schematics ----------------- None Robot Schematics ------------------ None Fabricated ------------ Nothing Alien Tech Used ----------------- None Achievements -------------- None Challenges ------------ None Game ------ Seed CentriumMasterObliterator Manual? 0 Play Time 00:25:10 Cumulative 35.3 hours Start 2024.08.08 @ 22:40:33 End 2024.08.13 @ 18:58:10 Sessions 12 Manual Loads 0 Difficulty Rogue Special Mode None Game No. 27 Rogue 15 Adventurer 12 Explorer 0 Win Type - Total 0 Types 0/0/0/0/0/0/0/0/0 Lore% 10 Gallery% 22 Achievement% 23 Wizard Run 0 Options --------- Layout 0 ASCII 0 Keyboard 0 Movement Numpad Keybinds 0 Fullscreen 0 Font 16/SmallcapsGlow Map View 76x50 Zoom Use 55% Tactical HUD 0 Map Filters NONE Filters NONE Steam 1 RUN: 15ea9202-4009-4396-9458-85bc731a7c81